[Event "*** Titled Tuesday Blitz"]
[Site "Chess.com"]
[Date "2020.11.10"]
[Round "6"]
[White "lilleper1"]
[Black "shnitez"]
[Result "1-0"]
[WhiteElo "2822"]
[BlackElo "2523"]
[TimeControl "180+1"]
[EndTime "11:09:22 PST"]
[Termination "lilleper1 won by resignation"]

1. e4 {[%clk 0:03:00.9]} 1... c5 {[%clk 0:02:57.7]} 2. Nf3 {[%clk 0:03:00.5]}
2... e6 {[%clk 0:02:57.3]} 3. d4 {[%clk 0:02:58.9]} 3... cxd4 {[%clk 0:02:58.2]}
4. Nxd4 {[%clk 0:02:59.5]} 4... a6 {[%clk 0:02:58.4]} 5. Bd3 {[%clk 0:02:57.4]}
5... Bc5 {[%clk 0:02:57.6]} 6. Nb3 {[%clk 0:02:57.5]} 6... Be7 {[%clk
0:02:57.5]} 7. Qg4 {[%clk 0:02:57]} 7... g6 {[%clk 0:02:57.4]} 8. Qe2 {[%clk
0:02:57.1]} 8... d6 {[%clk 0:02:56.1]} 9. c4 {[%clk 0:02:56.8]} 9... b6 {[%clk
0:02:45.3]} 10. Nc3 {[%clk 0:02:56.3]} 10... Bb7 {[%clk 0:02:45.5]} 11. Be3
{[%clk 0:02:55.8]} 11... Nd7 {[%clk 0:02:44.6]} 12. f3 {[%clk 0:02:49.2]} 12...
Qc7 {[%clk 0:02:35.4]} 13. Rc1 {[%clk 0:02:47.8]} 13... Rc8 {[%clk 0:02:24.2]}
14. Nd4 {[%clk 0:02:47]} 14... Ne5 {[%clk 0:02:16.5]} 15. b3 {[%clk 0:02:43.9]}
15... Nxd3+ {[%clk 0:02:07.3]} 16. Qxd3 {[%clk 0:02:44.8]} 16... h5 {[%clk
0:01:56.7]} 17. Nde2 {[%clk 0:02:37.7]} 17... Nf6 {[%clk 0:01:53.3]} 18. Na4
{[%clk 0:02:25.9]} 18... Nd7 {[%clk 0:01:50.7]} 19. Nxb6 {[%clk 0:02:15.1]}
19... Nc5 {[%clk 0:01:24.8]} 20. Qc3 {[%clk 0:02:05.5]} 20... O-O {[%clk
0:01:07.8]} 21. Nxc8 {[%clk 0:02:05.6]} 21... Rxc8 {[%clk 0:01:08.7]} 22. O-O
{[%clk 0:02:05]} 22... Nd7 {[%clk 0:01:01.3]} 23. Rfd1 {[%clk 0:02:03.5]} 23...
h4 {[%clk 0:00:58.4]} 24. h3 {[%clk 0:02:01.9]} 24... Ne5 {[%clk 0:00:44.2]} 25.
Qd2 {[%clk 0:01:59.8]} 25... f5 {[%clk 0:00:32.1]} 26. exf5 {[%clk 0:01:48.5]}
26... gxf5 {[%clk 0:00:29]} 27. Nd4 {[%clk 0:01:45.3]} 27... Kf7 {[%clk
0:00:26]} 28. Kh1 {[%clk 0:01:23.9]} 28... Rg8 {[%clk 0:00:23.6]} 29. Bf4 {[%clk
0:01:20.3]} 29... Ng6 {[%clk 0:00:14.5]} 30. Bh2 {[%clk 0:01:17.3]} 30... Ne5
{[%clk 0:00:12.3]} 31. Qe2 {[%clk 0:01:16.5]} 31... Bc8 {[%clk 0:00:07.6]} 32.
c5 {[%clk 0:01:15.6]} 32... Qa5 {[%clk 0:00:03.6]} 33. cxd6 {[%clk 0:01:08.8]}
33... Bxd6 {[%clk 0:00:04.5]} 34. Nxf5 {[%clk 0:01:03.4]} 34... Bb8 {[%clk
0:00:03.2]} 35. Nd4 {[%clk 0:01:00.1]} 35... Rd8 {[%clk 0:00:01.1]} 36. Qe4
{[%clk 0:00:49.1]} 36... Ng6 {[%clk 0:00:01.3]} 37. Nc6 {[%clk 0:00:45.8]} 37...
Rd5 {[%clk 0:00:02.2]} 38. Nxa5 {[%clk 0:00:44.4]} 1-0

[Event "*** Titled Tuesday Blitz"]
[Site "Chess.com"]
[Date "2020.11.10"]
[Round "6"]
[White "No_t_ime_to_die"]
[Black "Forantes"]
[Result "1-0"]
[WhiteElo "2484"]
[BlackElo "2347"]
[TimeControl "180+1"]
[EndTime "11:09:22 PST"]
[Termination "No_t_ime_to_die won on time"]

1. e4 {[%clk 0:03:00.9]} 1... c5 {[%clk 0:02:59.4]} 2. Nf3 {[%clk 0:03:00.6]}
2... Nc6 {[%clk 0:02:58.7]} 3. d4 {[%clk 0:03:00.2]} 3... cxd4 {[%clk
0:02:59.3]} 4. Nxd4 {[%clk 0:03:01.1]} 4... e5 {[%clk 0:02:59.9]} 5. Nb5 {[%clk
0:03:00]} 5... a6 {[%clk 0:03:00.4]} 6. Nd6+ {[%clk 0:02:55.8]} 6... Bxd6 {[%clk
0:03:00.1]} 7. Qxd6 {[%clk 0:02:56.7]} 7... Qf6 {[%clk 0:03:01]} 8. Qd1 {[%clk
0:02:51.7]} 8... Qg6 {[%clk 0:03:01.2]} 9. Nc3 {[%clk 0:02:47.7]} 9... d5 {[%clk
0:03:01.2]} 10. exd5 {[%clk 0:02:43.8]} 10... Nd4 {[%clk 0:02:58.9]} 11. Bd3
{[%clk 0:01:43.8]} 11... Qxg2 {[%clk 0:02:57.3]} 12. Be4 {[%clk 0:01:44.3]}
12... Qh3 {[%clk 0:02:57.6]} 13. Be3 {[%clk 0:01:41.6]} 13... Bg4 {[%clk
0:02:47]} 14. Qd2 {[%clk 0:01:25.9]} 14... Nf6 {[%clk 0:02:07.5]} 15. Bxd4
{[%clk 0:01:19.7]} 15... exd4 {[%clk 0:02:08.4]} 16. Qxd4 {[%clk 0:01:20.3]}
16... O-O {[%clk 0:02:07.5]} 17. Kd2 {[%clk 0:01:13.9]} 17... Rfe8 {[%clk
0:01:47.1]} 18. Rae1 {[%clk 0:01:10.7]} 18... Qh6+ {[%clk 0:01:15.8]} 19. Qe3
{[%clk 0:01:08.9]} 19... Nxe4+ {[%clk 0:00:46.5]} 20. Nxe4 {[%clk 0:01:05.1]}
20... Qg6 {[%clk 0:00:19.9]} 21. f3 {[%clk 0:01:02.6]} 21... Bd7 {[%clk
0:00:17.2]} 22. Qd3 {[%clk 0:01:00.9]} 22... f5 {[%clk 0:00:11.4]} 23. Nc5
{[%clk 0:00:48.7]} 23... Bb5 {[%clk 0:00:10.6]} 24. c4 {[%clk 0:00:48.2]} 24...
Qh6+ {[%clk 0:00:09.7]} 25. Kc2 {[%clk 0:00:46.5]} 25... Qb6 {[%clk 0:00:07.4]}
26. b4 {[%clk 0:00:38]} 26... Bd7 {[%clk 0:00:01.3]} 27. Nxd7 {[%clk 0:00:36.9]}
27... Qxb4 {[%clk 0:00:00.3]} 28. Qb3 {[%clk 0:00:31.2]} 1-0

[Event "*** Titled Tuesday Blitz"]
[Site "Chess.com"]
[Date "2020.11.10"]
[Round "6"]
[White "Vasily85"]
[Black "MoreChessJulia"]
[Result "1-0"]
[WhiteElo "2399"]
[BlackElo "2097"]
[TimeControl "180+1"]
[EndTime "11:09:22 PST"]
[Termination "Vasily85 won by resignation"]

1. d4 {[%clk 0:03:00.9]} 1... Nf6 {[%clk 0:02:57.5]} 2. Bg5 {[%clk 0:03:01.3]}
2... Ne4 {[%clk 0:02:57.1]} 3. Bf4 {[%clk 0:03:01.3]} 3... g5 {[%clk 0:02:57]}
4. Be5 {[%clk 0:02:58.7]} 4... f6 {[%clk 0:02:57]} 5. e3 {[%clk 0:02:56.1]} 5...
h5 {[%clk 0:02:55]} 6. Bd3 {[%clk 0:02:52.3]} 6... d5 {[%clk 0:02:50.7]} 7. f3
{[%clk 0:02:29.5]} 7... fxe5 {[%clk 0:02:49.7]} 8. fxe4 {[%clk 0:02:29.9]} 8...
Bg4 {[%clk 0:02:49.1]} 9. Ne2 {[%clk 0:02:26.5]} 9... Nc6 {[%clk 0:02:45.8]} 10.
O-O {[%clk 0:02:19.5]} 10... Bg7 {[%clk 0:02:41.2]} 11. exd5 {[%clk 0:02:16.4]}
11... Qxd5 {[%clk 0:02:39.2]} 12. c4 {[%clk 0:02:16.4]} 12... Qd6 {[%clk
0:02:29.7]} 13. d5 {[%clk 0:02:07.2]} 13... Nb4 {[%clk 0:02:27.4]} 14. Nbc3
{[%clk 0:01:55.2]} 14... Nxd3 {[%clk 0:02:16.5]} 15. Qxd3 {[%clk 0:01:54.9]}
15... O-O-O {[%clk 0:02:16]} 16. Ne4 {[%clk 0:01:34.2]} 16... Qb4 {[%clk
0:02:15.5]} 17. b3 {[%clk 0:01:32.1]} 17... Rdf8 {[%clk 0:02:08.5]} 18. Nxg5
{[%clk 0:01:25]} 18... e4 {[%clk 0:02:08.1]} 19. Nxe4 {[%clk 0:01:08.9]} 19...
Bxa1 {[%clk 0:02:07]} 20. Rxa1 {[%clk 0:01:09.8]} 20... Rf5 {[%clk 0:02:00]} 21.
Nd4 {[%clk 0:01:08.3]} 21... Re5 {[%clk 0:01:53.7]} 22. Rf1 {[%clk 0:00:56.7]}
22... Rd8 {[%clk 0:01:46.9]} 23. Nb5 {[%clk 0:00:39.3]} 23... a6 {[%clk
0:01:39.7]} 24. a3 {[%clk 0:00:35.7]} 24... Qa5 {[%clk 0:01:35]} 25. b4 {[%clk
0:00:35.8]} 25... Qb6 {[%clk 0:01:34.4]} 26. Nd4 {[%clk 0:00:33.7]} 26... e6
{[%clk 0:01:26.6]} 27. c5 {[%clk 0:00:27.1]} 27... Qa7 {[%clk 0:01:26.5]} 28. d6
{[%clk 0:00:23.8]} 28... cxd6 {[%clk 0:01:22.5]} 29. Nxd6+ {[%clk 0:00:24.7]}
29... Rxd6 {[%clk 0:01:22.3]} 30. cxd6 {[%clk 0:00:25.6]} 30... Qb6 {[%clk
0:01:15.4]} 31. Rc1+ {[%clk 0:00:25.9]} 31... Kb8 {[%clk 0:01:13.9]} 32. d7
{[%clk 0:00:25]} 32... Rd5 {[%clk 0:01:13.1]} 33. Qc4 {[%clk 0:00:21.7]} 33...
Rxd7 {[%clk 0:00:58.7]} 34. Qc8+ {[%clk 0:00:21.7]} 34... Ka7 {[%clk 0:00:59.1]}
35. Qxd7 {[%clk 0:00:22.2]} 35... e5 {[%clk 0:00:59.3]} 36. Qc7 {[%clk
0:00:20.7]} 36... exd4 {[%clk 0:00:58.2]} 37. Qxb6+ {[%clk 0:00:20.5]} 37...
Kxb6 {[%clk 0:00:58.7]} 38. exd4 {[%clk 0:00:21.4]} 38... Be6 {[%clk 0:00:57.6]}
39. Kf2 {[%clk 0:00:20.8]} 39... Bd5 {[%clk 0:00:57.5]} 40. g3 {[%clk
0:00:21.1]} 40... a5 {[%clk 0:00:55]} 41. Rc5 {[%clk 0:00:22]} 41... axb4 {[%clk
0:00:48.3]} 42. axb4 {[%clk 0:00:22.9]} 42... Bc6 {[%clk 0:00:47.6]} 43. Rxh5
{[%clk 0:00:21.9]} 1-0

[Event "*** Titled Tuesday Blitz"]
[Site "Chess.com"]
[Date "2020.11.10"]
[Round "6"]
[White "rasmussvane"]
[Black "esapunov"]
[Result "0-1"]
[WhiteElo "2872"]
[BlackElo "2721"]
[TimeControl "180+1"]
[EndTime "11:09:27 PST"]
[Termination "esapunov won by resignation"]

1. Nf3 {[%clk 0:03:00.9]} 1... Nf6 {[%clk 0:02:59.5]} 2. g3 {[%clk 0:03:01.3]}
2... g6 {[%clk 0:02:59.9]} 3. Bg2 {[%clk 0:03:01.7]} 3... Bg7 {[%clk 0:03:00.7]}
4. O-O {[%clk 0:03:02.3]} 4... O-O {[%clk 0:03:01.4]} 5. d4 {[%clk 0:03:02.7]}
5... d6 {[%clk 0:03:02.1]} 6. Re1 {[%clk 0:03:02.9]} 6... Nbd7 {[%clk
0:03:01.8]} 7. e4 {[%clk 0:03:03.1]} 7... e5 {[%clk 0:03:02.1]} 8. Nc3 {[%clk
0:03:03.7]} 8... Re8 {[%clk 0:02:57.9]} 9. a4 {[%clk 0:03:03.6]} 9... a5 {[%clk
0:02:48.2]} 10. h3 {[%clk 0:03:03.5]} 10... c6 {[%clk 0:02:47.8]} 11. Be3 {[%clk
0:03:03.7]} 11... exd4 {[%clk 0:02:47.2]} 12. Bxd4 {[%clk 0:03:03.4]} 12... Qc7
{[%clk 0:02:43.6]} 13. Qe2 {[%clk 0:03:00.5]} 13... b6 {[%clk 0:02:42.4]} 14.
Rad1 {[%clk 0:02:59.6]} 14... Bb7 {[%clk 0:02:37.1]} 15. Qd2 {[%clk 0:02:56]}
15... Rad8 {[%clk 0:02:35.3]} 16. Qf4 {[%clk 0:02:46.1]} 16... Nh5 {[%clk
0:02:29.6]} 17. Qh4 {[%clk 0:02:41.1]} 17... Ne5 {[%clk 0:02:29.5]} 18. Nxe5
{[%clk 0:02:39.2]} 18... dxe5 {[%clk 0:02:18.7]} 19. Be3 {[%clk 0:02:39.2]}
19... Bf6 {[%clk 0:02:14.9]} 20. Qg4 {[%clk 0:02:33.4]} 20... Ng7 {[%clk
0:02:10.6]} 21. Qe2 {[%clk 0:02:31]} 21... Ne6 {[%clk 0:02:07.3]} 22. Qc4 {[%clk
0:02:31]} 22... Rc8 {[%clk 0:01:41.8]} 23. h4 {[%clk 0:02:28.4]} 23... Nd4
{[%clk 0:01:35.7]} 24. Ne2 {[%clk 0:02:10.6]} 24... b5 {[%clk 0:00:48.3]} 25.
Qc5 {[%clk 0:02:06.1]} 25... Be7 {[%clk 0:00:44.5]} 26. Qc3 {[%clk 0:01:50.7]}
26... Bb4 {[%clk 0:00:44]} 27. Qd3 {[%clk 0:01:51]} 27... Bxe1 {[%clk
0:00:43.6]} 28. Rxe1 {[%clk 0:01:51.9]} 28... Nxe2+ {[%clk 0:00:41.3]} 29. Qxe2
{[%clk 0:01:52.8]} 29... Ba6 {[%clk 0:00:35.3]} 30. h5 {[%clk 0:01:51.9]} 30...
Rcd8 {[%clk 0:00:33]} 31. Bg5 {[%clk 0:01:51.3]} 31... Rd6 {[%clk 0:00:32.8]}
32. axb5 {[%clk 0:01:44.5]} 32... cxb5 {[%clk 0:00:32.4]} 33. Bf1 {[%clk
0:01:31.9]} 33... f6 {[%clk 0:00:31.9]} 34. Be3 {[%clk 0:01:31.5]} 34... b4
{[%clk 0:00:30.4]} 35. Qg4 {[%clk 0:01:31.8]} 35... Bxf1 {[%clk 0:00:29.8]} 36.
hxg6 {[%clk 0:01:32.2]} 36... Bc4 {[%clk 0:00:26.9]} 37. gxh7+ {[%clk
0:01:32.1]} 37... Kh8 {[%clk 0:00:27.2]} 38. Kg2 {[%clk 0:01:27.6]} 38... Be6
{[%clk 0:00:24.5]} 39. Qh4 {[%clk 0:01:27.6]} 39... Qf7 {[%clk 0:00:22.9]} 40.
Ra1 {[%clk 0:01:24.7]} 40... Ra6 {[%clk 0:00:20.8]} 41. b3 {[%clk 0:01:23.2]}
41... Qg6 {[%clk 0:00:20.9]} 42. Rd1 {[%clk 0:01:16.7]} 42... Rc6 {[%clk
0:00:20.1]} 43. Rd2 {[%clk 0:01:16.3]} 43... Rc7 {[%clk 0:00:20.3]} 44. Qh6
{[%clk 0:01:03.1]} 44... Qxh6 {[%clk 0:00:20.1]} 45. Bxh6 {[%clk 0:01:04]} 45...
Kxh7 {[%clk 0:00:20.6]} 46. Be3 {[%clk 0:01:04.2]} 46... Rec8 {[%clk 0:00:20.7]}
47. Rd6 {[%clk 0:01:04.4]} 47... Rc6 {[%clk 0:00:21]} 48. Rd1 {[%clk 0:01:03.2]}
48... Rxc2 {[%clk 0:00:20.7]} 49. Ra1 {[%clk 0:01:03.2]} 49... Kg6 {[%clk
0:00:20]} 50. Rxa5 {[%clk 0:01:03.2]} 50... R8c3 {[%clk 0:00:20.1]} 51. Bb6
{[%clk 0:01:00.1]} 51... Rxb3 {[%clk 0:00:20]} 52. Bd8 {[%clk 0:01:00.2]} 52...
Rbb2 {[%clk 0:00:19.9]} 0-1

[Event "*** Titled Tuesday Blitz"]
[Site "Chess.com"]
[Date "2020.11.10"]
[Round "6"]
[White "Quiet_Desperation"]
[Black "rugbyclub"]
[Result "1-0"]
[WhiteElo "1745"]
[BlackElo "2205"]
[TimeControl "180+1"]
[EndTime "11:09:27 PST"]
[Termination "Quiet_Desperation won by checkmate"]

1. e4 {[%clk 0:03:00.9]} 1... e6 {[%clk 0:02:59.4]} 2. d4 {[%clk 0:02:57.5]}
2... d5 {[%clk 0:02:59.8]} 3. Nc3 {[%clk 0:02:56.2]} 3... Bb4 {[%clk 0:02:58.5]}
4. e5 {[%clk 0:02:55.3]} 4... Ne7 {[%clk 0:02:57.2]} 5. Bd2 {[%clk 0:02:53.3]}
5... Nf5 {[%clk 0:02:54.4]} 6. Nf3 {[%clk 0:02:52.3]} 6... O-O {[%clk
0:02:51.7]} 7. Bd3 {[%clk 0:02:51.7]} 7... c5 {[%clk 0:02:51]} 8. dxc5 {[%clk
0:02:47.7]} 8... Nc6 {[%clk 0:02:46]} 9. Bxf5 {[%clk 0:02:42.5]} 9... exf5
{[%clk 0:02:45]} 10. O-O {[%clk 0:02:39.6]} 10... Bxc5 {[%clk 0:02:41.4]} 11.
Bg5 {[%clk 0:02:37]} 11... Qb6 {[%clk 0:02:33.7]} 12. Nxd5 {[%clk 0:02:34.1]}
12... Qxb2 {[%clk 0:02:32.7]} 13. Rb1 {[%clk 0:02:30.6]} 13... Qxa2 {[%clk
0:02:30.1]} 14. Rb3 {[%clk 0:01:54.1]} 14... Qa4 {[%clk 0:02:08.7]} 15. Qd2
{[%clk 0:01:27.3]} 15... b6 {[%clk 0:01:54.5]} 16. h3 {[%clk 0:01:17.5]} 16...
Be6 {[%clk 0:01:52.7]} 17. Bf6 {[%clk 0:01:12.7]} 17... Rfc8 {[%clk 0:01:30.5]}
18. Qg5 {[%clk 0:01:06.8]} 18... g6 {[%clk 0:01:24.4]} 19. Nf4 {[%clk
0:00:50.1]} 19... Bxb3 {[%clk 0:01:14.5]} 20. cxb3 {[%clk 0:00:46.1]} 20... Qxb3
{[%clk 0:01:00.9]} 21. e6 {[%clk 0:00:41.7]} 21... Re8 {[%clk 0:00:50.8]} 22.
Rc1 {[%clk 0:00:33.2]} 22... Qb4 {[%clk 0:00:13.2]} 23. exf7+ {[%clk 0:00:24.9]}
23... Kxf7 {[%clk 0:00:12.1]} 24. Qh4 {[%clk 0:00:19.1]} 24... a5 {[%clk
0:00:04]} 25. Bc3 {[%clk 0:00:15.7]} 25... Qe4 {[%clk 0:00:02.4]} 26. Ng5+
{[%clk 0:00:14.9]} 26... Kg8 {[%clk 0:00:02]} 27. Qxh7+ {[%clk 0:00:14.8]} 27...
Kf8 {[%clk 0:00:02.3]} 28. Qf7# {[%clk 0:00:15.4]} 1-0

[Event "*** Titled Tuesday Blitz"]
[Site "Chess.com"]
[Date "2020.11.10"]
[Round "6"]
[White "KyrgyzFighter"]
[Black "biostatistician"]
[Result "0-1"]
[WhiteElo "2351"]
[BlackElo "2519"]
[TimeControl "180+1"]
[EndTime "11:09:31 PST"]
[Termination "biostatistician won by checkmate"]

1. c4 {[%clk 0:03:00.9]} 1... Nf6 {[%clk 0:02:58.9]} 2. Nc3 {[%clk 0:03:00.6]}
2... g6 {[%clk 0:02:59.5]} 3. e4 {[%clk 0:03:00.9]} 3... d6 {[%clk 0:03:00.2]}
4. d4 {[%clk 0:02:59.7]} 4... Bg7 {[%clk 0:03:01.1]} 5. f3 {[%clk 0:02:57.5]}
5... O-O {[%clk 0:03:00.4]} 6. Be3 {[%clk 0:02:58.1]} 6... c5 {[%clk 0:03:00.5]}
7. d5 {[%clk 0:02:57.2]} 7... e6 {[%clk 0:02:59.9]} 8. Nge2 {[%clk 0:02:57.7]}
8... exd5 {[%clk 0:03:00]} 9. cxd5 {[%clk 0:02:58.6]} 9... a6 {[%clk 0:03:00.4]}
10. a4 {[%clk 0:02:58.8]} 10... Nbd7 {[%clk 0:02:57.4]} 11. Ng3 {[%clk
0:02:58.8]} 11... h5 {[%clk 0:02:51.7]} 12. Be2 {[%clk 0:02:58.8]} 12... h4
{[%clk 0:02:51.8]} 13. Nf1 {[%clk 0:02:58.6]} 13... Ne5 {[%clk 0:02:46.1]} 14.
Nd2 {[%clk 0:02:57.3]} 14... Bd7 {[%clk 0:02:39.5]} 15. O-O {[%clk 0:02:56.2]}
15... b5 {[%clk 0:02:38.2]} 16. axb5 {[%clk 0:02:52]} 16... axb5 {[%clk
0:02:39.1]} 17. Rxa8 {[%clk 0:02:28.1]} 17... Qxa8 {[%clk 0:02:38.6]} 18. Nxb5
{[%clk 0:02:28.8]} 18... Bxb5 {[%clk 0:02:35.7]} 19. Bxb5 {[%clk 0:02:29.7]}
19... Rb8 {[%clk 0:02:34.5]} 20. Qe2 {[%clk 0:02:13]} 20... Qa5 {[%clk 0:02:24]}
21. Bd3 {[%clk 0:02:06.9]} 21... Rxb2 {[%clk 0:02:20]} 22. Bf4 {[%clk
0:01:58.7]} 22... Nh5 {[%clk 0:02:17.9]} 23. Bg5 {[%clk 0:01:30.6]} 23... Qc3
{[%clk 0:02:11.5]} 24. Ba6 {[%clk 0:01:14.8]} 24... f5 {[%clk 0:01:28.1]} 25.
Kh1 {[%clk 0:01:03.9]} 25... f4 {[%clk 0:01:24.4]} 26. Nb1 {[%clk 0:01:02.8]}
26... Qb3 {[%clk 0:01:07.7]} 27. Qd1 {[%clk 0:00:55.3]} 27... c4 {[%clk
0:00:53.2]} 28. Bxh4 {[%clk 0:00:48.2]} 28... c3 {[%clk 0:00:49.4]} 29. Qc1
{[%clk 0:00:36.2]} 29... c2 {[%clk 0:00:39.9]} 30. Nd2 {[%clk 0:00:34.7]} 30...
Qc3 {[%clk 0:00:33.6]} 31. Be1 {[%clk 0:00:34.4]} 31... Nd3 {[%clk 0:00:26.7]}
32. Bxd3 {[%clk 0:00:31.2]} 32... Qxd3 {[%clk 0:00:27.6]} 33. g4 {[%clk
0:00:21.7]} 33... Rb1 {[%clk 0:00:27]} 34. Nxb1 {[%clk 0:00:20]} 34... cxb1=Q
{[%clk 0:00:26.6]} 35. Qxb1 {[%clk 0:00:16.4]} 35... Qxf1# {[%clk 0:00:26.8]}
0-1

[Event "*** Titled Tuesday Blitz"]
[Site "Chess.com"]
[Date "2020.11.10"]
[Round "6"]
[White "sara_khm"]
[Black "maxip32"]
[Result "0-1"]
[WhiteElo "2574"]
[BlackElo "2432"]
[TimeControl "180+1"]
[EndTime "11:09:33 PST"]
[Termination "maxip32 won by resignation"]

1. d4 {[%clk 0:03:00.9]} 1... Nf6 {[%clk 0:02:59.2]} 2. c4 {[%clk 0:03:00.4]}
2... g6 {[%clk 0:02:59.8]} 3. g3 {[%clk 0:03:00.3]} 3... Bg7 {[%clk 0:03:00.3]}
4. Bg2 {[%clk 0:03:00.8]} 4... O-O {[%clk 0:03:01]} 5. Nc3 {[%clk 0:03:00.5]}
5... d6 {[%clk 0:03:01.3]} 6. Nf3 {[%clk 0:03:00.5]} 6... Nbd7 {[%clk
0:03:01.3]} 7. O-O {[%clk 0:03:00.7]} 7... e5 {[%clk 0:03:01.3]} 8. e4 {[%clk
0:03:01.2]} 8... exd4 {[%clk 0:03:00.9]} 9. Nxd4 {[%clk 0:03:00.9]} 9... Nc5
{[%clk 0:03:01.8]} 10. h3 {[%clk 0:02:58.2]} 10... Re8 {[%clk 0:03:01.6]} 11.
Re1 {[%clk 0:02:58.3]} 11... a5 {[%clk 0:03:01.1]} 12. Rb1 {[%clk 0:02:57.1]}
12... Bd7 {[%clk 0:02:59.4]} 13. b3 {[%clk 0:02:56.2]} 13... Qc8 {[%clk
0:02:39.9]} 14. Kh2 {[%clk 0:02:55.7]} 14... h5 {[%clk 0:02:35.1]} 15. Bf4
{[%clk 0:02:36.6]} 15... Nh7 {[%clk 0:02:28.7]} 16. h4 {[%clk 0:02:20.3]} 16...
Bxd4 {[%clk 0:02:27.2]} 17. Qxd4 {[%clk 0:02:19.4]} 17... Ne6 {[%clk 0:02:26.8]}
18. Qd2 {[%clk 0:02:19]} 18... Nxf4 {[%clk 0:02:23.7]} 19. Qxf4 {[%clk 0:02:19]}
19... Bc6 {[%clk 0:02:18.8]} 20. Nd5 {[%clk 0:02:12]} 20... Bxd5 {[%clk
0:02:15.5]} 21. cxd5 {[%clk 0:02:12]} 21... Qd8 {[%clk 0:02:06.8]} 22. Rbc1
{[%clk 0:02:09.6]} 22... Nf6 {[%clk 0:02:06.6]} 23. f3 {[%clk 0:02:05.9]} 23...
Nd7 {[%clk 0:02:04.9]} 24. Rc3 {[%clk 0:02:04.9]} 24... Nc5 {[%clk 0:02:02.8]}
25. Rec1 {[%clk 0:02:03.2]} 25... Ra6 {[%clk 0:01:58.3]} 26. Qd2 {[%clk
0:01:49.7]} 26... Qf6 {[%clk 0:01:55.6]} 27. Rc4 {[%clk 0:01:47.7]} 27... Qe7
{[%clk 0:01:27.6]} 28. f4 {[%clk 0:01:33]} 28... f6 {[%clk 0:01:05.7]} 29. Qc2
{[%clk 0:01:25.9]} 29... Qg7 {[%clk 0:01:04.1]} 30. a3 {[%clk 0:01:18.2]} 30...
g5 {[%clk 0:00:44]} 31. hxg5 {[%clk 0:01:08.8]} 31... fxg5 {[%clk 0:00:44.9]}
32. b4 {[%clk 0:01:08.8]} 32... gxf4 {[%clk 0:00:44.3]} 33. gxf4 {[%clk
0:01:06.1]} 33... axb4 {[%clk 0:00:42.8]} 34. axb4 {[%clk 0:01:05.7]} 34... Ra3
{[%clk 0:00:34.5]} 35. bxc5 {[%clk 0:00:59.3]} 35... Qg3+ {[%clk 0:00:33.1]} 36.
Kh1 {[%clk 0:00:59.4]} 36... Rea8 {[%clk 0:00:07.1]} 37. Rc3 {[%clk 0:00:55]}
37... Qh4+ {[%clk 0:00:06.1]} 38. Kg1 {[%clk 0:00:52.6]} 38... Ra2 {[%clk
0:00:06.4]} 39. Qd3 {[%clk 0:00:46.4]} 39... Qf2+ {[%clk 0:00:05.8]} 0-1

[Event "*** Titled Tuesday Blitz"]
[Site "Chess.com"]
[Date "2020.11.10"]
[Round "6"]
[White "Pavlov_Sergey"]
[Black "Sanan_Sjugirov"]
[Result "0-1"]
[WhiteElo "2614"]
[BlackElo "2831"]
[TimeControl "180+1"]
[EndTime "11:09:36 PST"]
[Termination "Sanan_Sjugirov won by resignation"]

1. c4 {[%clk 0:02:59]} 1... c5 {[%clk 0:02:57.5]} 2. Nf3 {[%clk 0:02:58.1]} 2...
Nc6 {[%clk 0:02:55]} 3. d4 {[%clk 0:02:58.1]} 3... cxd4 {[%clk 0:02:55.3]} 4.
Nxd4 {[%clk 0:02:58.6]} 4... Qb6 {[%clk 0:02:55.1]} 5. Nb3 {[%clk 0:02:58.1]}
5... e6 {[%clk 0:02:46.9]} 6. a3 {[%clk 0:02:55.2]} 6... Nf6 {[%clk 0:02:46.5]}
7. Nc3 {[%clk 0:02:55.6]} 7... a6 {[%clk 0:02:18.3]} 8. e4 {[%clk 0:02:53]} 8...
d6 {[%clk 0:02:14.4]} 9. Be3 {[%clk 0:02:52.3]} 9... Qc7 {[%clk 0:02:14.1]} 10.
Rc1 {[%clk 0:02:52.3]} 10... Ne5 {[%clk 0:02:07.6]} 11. Be2 {[%clk 0:02:36.9]}
11... Be7 {[%clk 0:02:06.2]} 12. O-O {[%clk 0:02:33.5]} 12... O-O {[%clk
0:02:05]} 13. f4 {[%clk 0:02:33.7]} 13... Ned7 {[%clk 0:02:04]} 14. Nd4 {[%clk
0:02:19.6]} 14... Re8 {[%clk 0:01:52.7]} 15. b4 {[%clk 0:02:02.6]} 15... b6
{[%clk 0:01:46.7]} 16. Bf3 {[%clk 0:01:52.5]} 16... Bb7 {[%clk 0:01:40.5]} 17.
Nd5 {[%clk 0:01:52.7]} 17... exd5 {[%clk 0:01:38.7]} 18. cxd5 {[%clk 0:01:53.1]}
18... Qb8 {[%clk 0:01:28.8]} 19. Nc6 {[%clk 0:01:52.4]} 19... Bxc6 {[%clk
0:01:28.7]} 20. dxc6 {[%clk 0:01:52.8]} 20... Nf8 {[%clk 0:01:29.2]} 21. e5
{[%clk 0:01:33.7]} 21... dxe5 {[%clk 0:01:28.9]} 22. c7 {[%clk 0:01:31.4]} 22...
Qa7 {[%clk 0:01:22.7]} 23. fxe5 {[%clk 0:01:24.8]} 23... N6d7 {[%clk 0:01:21.6]}
24. Bd5 {[%clk 0:00:45]} 24... Nxe5 {[%clk 0:01:18.7]} 25. Qd4 {[%clk
0:00:36.7]} 25... Nfd7 {[%clk 0:00:38.7]} 26. Bxf7+ {[%clk 0:00:22.4]} 26...
Nxf7 {[%clk 0:00:39.6]} 27. Qxd7 {[%clk 0:00:22.4]} 27... Rac8 {[%clk
0:00:38.7]} 28. Rxf7 {[%clk 0:00:18.9]} 28... Kxf7 {[%clk 0:00:37.9]} 29. Qd5+
{[%clk 0:00:19.3]} 29... Kf8 {[%clk 0:00:37.3]} 30. Rf1+ {[%clk 0:00:15.9]}
30... Bf6 {[%clk 0:00:37.5]} 31. Bf4 {[%clk 0:00:16.3]} 31... b5+ {[%clk
0:00:31.4]} 32. Kh1 {[%clk 0:00:14.6]} 32... Rxc7 {[%clk 0:00:29.7]} 33. Bd6+
{[%clk 0:00:09.7]} 33... Rce7 {[%clk 0:00:28]} 34. Qg5 {[%clk 0:00:06.1]} 34...
Qd4 {[%clk 0:00:25.2]} 0-1